bitfinex-derivatives/quotes_ETHF0:USTF0_20250817
["timestamp","ask_amount","ask_price","bid_price","bid_amount"]
[1755436740472,0.5713,4524.7,4524.6,0.8141]
[1755436740670,3.8491,4525.1,4524.6,0.5771]
[1755436740873,1.2126,4524.7,4524.6,1.4307]
[1755436741176,1.4539,4524.7,4524.6,1.4307]
[1755436741875,3.2078,4525.1,4524.9,1.4307]
[1755436742071,3.2078,4525.1,4524.9,0.5828]
[1755436742273,3.6116,4525.1,4525.0,1.4307]
[1755436742782,3.2078,4525.1,4525.0,1.4307]
[1755436742967,0.6413,4525.8,4525.0,1.4307]
[1755436742968,3.2078,4525.6,4525.0,1.4307]
[1755436743277,3.2078,4525.6,4524.5,0.0221]
[1755436743278,3.7791,4525.6,4525.5,0.5828]
[1755436743476,4.6617,4525.6,4525.5,1.4307]
[1755436743878,3.7791,4525.6,4525.5,1.4307]
[1755436744574,4.4204,4525.6,4525.5,1.4307]
[1755436744775,4.6617,4525.6,4525.5,1.4307]
[1755436745079,1.4539,4525.6,4525.5,1.4307]
[1755436745468,1.4539,4525.6,4524.6,1.10451]
[1755436745469,1.4539,4524.8,4524.7,0.1605]
[1755436745674,1.4539,4524.8,4524.4,0.8479]
[1755436745877,0.5713,4524.5,4524.4,1.4307]
[1755436746177,1.4539,4524.5,4524.4,1.4307]
[1755436747380,1.2126,4524.5,4524.4,1.4307]
[1755436748077,1.4539,4524.5,4524.4,1.4307]
[1755436748371,1.2126,4524.5,4524.4,1.4307]
[1755436748577,0.4038,4524.9,4524.8,1.4307]
[1755436748773,1.2126,4524.9,4524.8,1.4307]
[1755436748969,1.2126,4524.9,4524.4,0.6109]
[1755436748970,1.4539,4524.9,4524.4,0.6109]
[1755436749172,1.4539,4524.6,4524.5,1.4307]
[1755436750878,1.2126,4524.6,4524.5,1.4307]
[1755436754382,1.4539,4524.6,4524.5,1.4307]
[1755436756375,3.2078,4525.1,4524.5,1.4307]
[1755436756581,1.4539,4525.0,4524.9,0.5828]
[1755436756884,1.4539,4525.0,4524.9,0.5771]
[1755436757274,1.4539,4525.0,4524.9,0.3303]
[1755436757674,1.4539,4525.0,4524.9,1.4158]
[1755436759179,1.4539,4525.0,4524.9,0.5668]
[1755436759383,1.4539,4525.0,4524.9,0.3303]
[1755436760876,0.4151,4524.4,4524.3,1.4241]
[1755436761185,1.4201,4524.9,4524.8,0.5911]
[1755436761484,1.4201,4524.9,4524.8,1.4241]
[1755436763185,1.1715,4524.9,4524.8,1.4241]
[1755436763381,3.2078,4525.7,4524.4,0.44182]
[1755436763382,0.8199,4525.6,4525.5,0.333]
[1755436763582,1.62489012,4525.6,4525.5,0.333]
[1755436763994,1.62489012,4525.6,4525.5,0.5695]
[1755436764985,1.62489012,4525.6,4524.6,0.4418]
[1755436765184,0.4151,4524.9,4524.8,1.0626]
[1755436765486,1.1715,4525.6,4525.5,0.166]
[1755436765780,1.37643449,4525.6,4525.5,0.5695]
[1755436765979,1.37643449,4525.6,4525.5,0.8045]
[1755436766179,1.62503449,4525.6,4525.5,1.4241]
[1755436766581,1.62503449,4525.6,4525.5,0.5695]
[1755436767091,1.62503449,4525.6,4525.5,1.4241]
[1755436768583,1.62520673,4525.6,4525.5,1.4241]
[1755436768790,1.62520672,4525.6,4525.5,1.4241]
[1755436769195,1.62520673,4525.6,4525.5,1.4241]
[1755436769788,0.20510673,4525.6,4525.5,1.4241]
[1755436769978,3.2078,4526.2,4525.6,1.27471]
[1755436770184,4.3793,4526.2,4526.1,1.4241]
[1755436770389,4.57384041,4526.2,4526.1,1.4241]
[1755436770687,4.1435,4526.2,4526.1,1.4241]
[1755436770890,3.2078,4526.2,4526.1,1.4241]
[1755436771084,0.5221,4526.6,4526.5,0.166]
[1755436771286,0.1685,4526.6,4526.5,1.4241]
[1755436772091,0.4151,4526.6,4526.5,1.4241]
[1755436772387,0.7687,4526.6,4526.5,1.4241]
[1755436772683,1.1715,4526.6,4526.5,1.4241]
[1755436772890,1.4201,4526.6,4526.5,1.4241]
[1755436773082,1.4201,4526.6,4526.5,1.0626]
[1755436773488,1.4201,4526.6,4526.5,0.5695]
[1755436774986,1.4201,4526.6,4526.5,1.4241]
[1755436777490,0.4151,4526.6,4526.5,1.4241]
[1755436777994,0.7687,4526.6,4526.5,1.4241]
[1755436778184,1.0045,4526.6,4526.5,1.4241]
[1755436778780,1.4201,4526.6,4526.5,1.4241]
[1755436778981,3.2078,4526.7,4526.6,0.2365]
[1755436779184,3.2078,4526.7,4526.6,1.4241]
[1755436779591,0.7687,4527.1,4527.0,1.4241]
[1755436779791,3.2078,4527.3,4527.0,1.4241]
[1755436779792,3.2078,4527.3,4527.2,0.5911]
[1755436779991,3.2078,4527.3,4527.2,1.4241]
[1755436780585,3.6229,4527.3,4527.2,1.4241]
[1755436780782,4.6279,4527.3,4527.2,1.4241]
[1755436781493,0.9357,4527.3,4527.2,1.4241]
[1755436782194,1.1715,4527.3,4527.2,1.4241]
[1755436782389,1.4201,4527.3,4527.2,1.4241]
[1755436783896,0.5821,4526.9,4526.0,0.2365]
[1755436784092,0.5821,4526.1,4526.0,1.0626]
[1755436784303,1.1715,4526.1,4526.0,1.4241]
[1755436785092,0.4151,4526.1,4526.0,1.4241]
[1755436785693,0.2486,4526.3,4526.1,0.44166]
[1755436785889,0.9357,4527.0,4526.9,0.2581]
[1755436786092,1.4201,4527.0,4526.9,1.4241]
[1755436787599,1.4167,4527.0,4526.9,1.4481]
[1755436791194,0.398,4527.1,4527.0,1.4526]
[1755436791597,0.7641,4527.1,4527.0,1.4526]
[1755436791900,1.43,4527.1,4527.0,1.4526]
[1755436792100,0.1584,4527.1,4527.0,0.959]
[1755436792298,0.5581,4527.6,4527.5,0.5849]
[1755436792498,0.5581,4527.6,4527.5,1.4526]
[1755436792704,0.8033,4527.6,4527.5,1.4526]
[1755436792899,1.43,4527.6,4527.5,1.4526]
[1755436797196,0.1584,4527.6,4527.5,1.4526]
[1755436798104,1.0247,4527.6,4527.5,1.4526]
[1755436798302,1.43,4527.6,4527.5,1.4526]
[1755436800695,1.0303,4526.9,4526.8,0.60259]
[1755436800903,1.43,4526.9,4526.8,0.60259]
[1755436801107,1.43,4526.9,4526.8,0.8261]
[1755436801408,0.8719,4526.8,4526.4,0.77413]
[1755436801608,0.5581,4526.5,4526.4,1.89423]
[1755436801809,1.43,4526.5,4526.4,1.89423]
[1755436802209,1.43,4526.5,4526.4,1.4526]
[1755436802606,1.1848,4526.5,4526.4,1.4526]
[1755436803908,0.5581,4526.5,4526.4,1.4526]
[1755436804107,0.1584,4526.5,4526.4,1.4526]
[1755436804310,3.2078,4527.5,4526.5,0.44162]
[1755436804508,0.1584,4526.7,4526.6,1.4526]
[1755436804900,0.6267,4526.9,4526.6,1.89421]
[1755436805105,0.8719,4527.5,4526.8,0.5849]
[1755436805304,4.6378,4527.5,4527.4,0.8261]
[1755436805504,1.43,4527.5,4527.4,1.4526]
[1755436805706,0.398,4527.5,4527.4,1.4526]
[1755436805998,1.43,4527.7,4527.6,0.4239]
[1755436806206,1.43,4527.7,4527.6,1.4526]
[1755436807401,3.2078,4528.1,4526.9,0.2464]
[1755436807402,0.8719,4528.0,4526.9,0.2464]
[1755436807606,1.43,4527.0,4526.9,1.0785]
[1755436807805,1.43,4527.0,4526.9,0.8261]
[1755436808010,1.43,4527.0,4526.9,1.4526]
[1755436809603,0.8719,4526.9,4526.8,0.3325]
[1755436809813,1.43,4526.9,4526.8,1.4526]
[1755436810316,1.43,4526.9,4526.5,0.44162]
[1755436810505,1.1904,4526.8,4526.7,1.2002]
[1755436810809,0.6267,4527.5,4526.8,0.6205]
[1755436811114,0.6586,4527.0,4526.9,1.0785]
[1755436811310,1.43,4527.0,4526.9,1.4526]
[1755436811507,1.43,4527.0,4526.6,0.4936]
[1755436811707,0.5581,4527.0,4526.6,0.2464]
[1755436811909,0.5581,4526.8,4526.7,0.8261]
[1755436812213,1.43,4526.8,4526.7,0.8261]
[1755436812507,0.2396,4526.8,4526.7,1.0785]
[1755436812714,0.5637,4527.9,4527.8,0.3325]
[1755436812916,0.8033,4527.9,4527.8,1.4526]
[1755436813307,1.43,4527.9,4527.8,1.4526]
[1755436813613,1.43,4527.0,4526.9,0.5849]
[1755436815711,1.43,4527.0,4526.9,0.3325]
[1755436816318,1.43,4527.0,4526.9,1.4526]
[1755436821112,0.5033,4527.4,4526.9,1.27288]
[1755436821320,1.1929,4528.0,4527.9,0.3303]
[1755436821612,1.4537,4528.0,4527.9,0.5869]
[1755436822015,1.4537,4528.0,4527.7,0.6203]
[1755436822213,0.5848,4527.8,4527.7,1.4517]
[1755436822410,1.4537,4527.8,4527.7,1.4517]
[1755436822611,0.5848,4527.8,4527.7,0.5748]
[1755436822815,1.194,4527.8,4527.7,0.5748]
[1755436823119,1.4537,4527.8,4527.7,0.5748]
[1755436823315,1.4537,4527.8,4527.7,1.4517]
[1755436823512,1.4537,4527.8,4527.4,0.2566]
[1755436823719,1.2101,4527.7,4527.6,1.4517]
[1755436823919,1.4537,4527.7,4527.6,1.4517]
[1755436825416,3.2078,4528.1,4527.6,1.039]
[1755436825618,0.6253,4528.6,4528.1,0.3698]
[1755436825917,0.4206,4528.6,4528.5,1.4517]
[1755436826323,0.7862,4528.6,4528.5,1.4517]
[1755436826714,1.2101,4528.6,4528.5,1.4517]
[1755436826914,1.4537,4528.6,4528.5,1.4517]
[1755436827421,0.5848,4528.6,4528.5,1.4517]
[1755436827614,0.4206,4528.6,4528.5,1.4517]
[1755436827821,1.2101,4528.6,4528.5,1.4517]
[1755436828219,1.4537,4528.6,4528.5,1.4517]
[1755436828921,0.4206,4528.6,4528.1,0.44146]
[1755436829120,0.4206,4528.6,4528.0,1.31837]
[1755436829320,1.4537,4528.6,4528.5,1.0819]
[1755436829614,1.4537,4528.6,4528.5,1.4517]
[1755436830325,0.4206,4528.6,4528.5,1.4517]
[1755436830826,1.2101,4528.6,4528.5,1.4517]
[1755436831026,1.4537,4528.6,4528.5,1.4517]
[1755436834429,3.5734,4528.7,4528.0,0.8769]
[1755436834735,1.4537,4528.6,4528.5,1.4517]
[1755436836228,0.4206,4528.6,4528.5,1.4517]
[1755436836729,1.2101,4528.6,4528.5,1.4517]
[1755436836930,1.4537,4528.6,4528.5,1.4517]
[1755436837729,1.2101,4528.6,4528.5,1.4517]
[1755436838329,0.7862,4528.6,4528.5,1.4517]
[1755436838527,3.2078,4528.7,4528.5,1.89312]
[1755436838735,3.2078,4528.7,4528.6,1.4517]
[1755436839236,3.6284,4528.7,4528.6,1.4517]
[1755436839533,3.994,4528.7,4528.6,1.4517]
[1755436839730,3.2078,4528.7,4528.6,1.4517]
[1755436840035,0.4206,4529.2,4529.1,1.4517]
[1755436840433,0.7862,4529.2,4529.1,1.4517]
[1755436840735,1.0459,4529.2,4529.1,1.4517]
[1755436840931,0.5848,4529.5,4529.4,0.4066]
[1755436841131,1.4537,4529.5,4529.4,1.4517]
[1755436843538,1.2101,4529.5,4529.4,1.4517]
[1755436846436,1.4537,4529.5,4529.4,1.4517]
[1755436847732,0.253,4529.8,4529.7,1.90861]
[1755436847928,0.5972,4530.2,4530.0,0.44128]
[1755436847929,0.1,4530.2,4530.0,0.44128]
[1755436848233,0.1,4530.2,4530.1,1.4673]
[1755436848234,1.569,4530.2,4530.1,1.4673]
[1755436848434,0.5212,4530.2,4530.1,1.4673]
[1755436848745,0.1,4530.2,4530.1,1.4673]
[1755436848934,1.3183,4530.2,4530.1,1.4673]
[1755436849237,1.569,4530.2,4530.1,1.4673]
[1755436849839,1.3225,4530.2,4530.1,1.4673]
[1755436850535,0.1,4530.2,4530.1,1.4673]
[1755436851045,1.569,4530.2,4530.1,1.4673]
[1755436851339,0.5212,4530.2,4530.1,1.4673]
[1755436851734,0.1,4530.2,4530.1,1.4673]
[1755436851932,0.5212,4530.2,4530.1,22.0663]
[1755436852133,1.3225,4530.2,4530.1,22.0663]
[1755436852338,1.569,4530.2,4530.1,1.4673]
[1755436853037,0.5212,4530.2,4530.1,1.4673]
[1755436853938,1.1486,4530.2,4530.1,1.4673]
[1755436854139,1.3225,4530.2,4530.1,1.4673]
[1755436854439,1.569,4530.2,4530.1,1.4673]
[1755436855638,0.1,4530.2,4529.7,3.2078]
[1755436855838,1.469,4529.8,4529.7,3.2078]
[1755436856137,1.469,4529.8,4529.7,25.2661]
[1755436856541,0.4212,4529.8,4529.7,25.70741]
[1755436856834,0.6719,4530.0,4529.9,1.90859]
[1755436857440,0.4212,4530.0,4529.9,1.90859]
[1755436857741,1.569,4530.2,4530.1,1.90857]
[1755436858134,0.5212,4530.2,4530.1,1.90857]
[1755436858633,1.1486,4530.2,4530.1,1.90857]
[1755436859740,0.5212,4530.2,4530.1,1.90857]
[1755436861143,0.1,4530.2,4530.1,1.90857]
[1755436862140,1.2183,4531.2,4531.1,1.2105]
[1755436862436,1.469,4531.2,4531.1,0.5938]
[1755436862742,1.469,4530.9,4530.8,23.7888]
[1755436863840,1.469,4530.9,4530.8,20.581]
[1755436867543,0.5951,4530.4,4530.3,3.9233]
[1755436867844,1.469,4530.4,4530.3,25.2491]
[1755436869146,0.6274,4531.1,4530.5,0.44123]
[1755436869338,1.469,4531.0,4530.9,0.4125]
[1755436869538,1.469,4531.0,4530.9,1.4673]
[1755436869738,1.469,4531.0,4530.9,1.0932]
[1755436870443,1.469,4531.0,4530.9,1.4673]
[1755436871439,1.469,4531.0,4530.9,1.0932]
[1755436871942,1.469,4531.0,4530.9,1.4673]
[1755436872140,0.7979,4531.0,4530.9,1.2105]
[1755436872336,1.469,4531.0,4530.9,1.4673]
[1755436873739,1.469,4531.0,4530.9,22.0343]
[1755436874238,1.469,4531.0,4530.9,21.4034]
[1755436874543,1.469,4531.0,4530.9,22.0343]
[1755436874742,1.469,4531.0,4530.9,25.2411]
[1755436875438,1.469,4531.0,4530.9,4.6751]
[1755436875846,1.469,4531.0,4530.9,25.2391]
[1755436877443,1.469,4531.0,4530.9,25.2371]
[1755436877848,1.469,4531.0,4530.9,25.2361]
[1755436878845,1.469,4531.0,4530.9,22.0283]
[1755436879245,1.469,4531.0,4530.9,22.0273]
[1755436879635,1.469,4531.0,4530.9,22.0263]
[1755436880345,0.5951,4531.0,4530.9,0.4211]
[1755436880546,0.5951,4531.0,4530.9,20.558]
[1755436880840,1.4774,4531.0,4530.4,3.2078]
[1755436881043,1.4655,4530.6,4530.5,20.8149]
[1755436881343,1.4655,4530.6,4530.5,21.78]
[1755436881546,1.4655,4530.6,4530.5,22.0293]
[1755436881940,3.2298,4531.5,4530.5,22.0293]
[1755436881941,0.2572,4531.2,4530.6,0.2463]
[1755436882246,1.4655,4531.2,4531.1,1.223]
[1755436882436,1.65380844,4531.2,4531.1,1.223]
[1755436882642,1.65380844,4531.2,4531.1,0.8376]
[1755436882839,1.65380844,4531.2,4531.1,1.223]
[1755436883047,1.65380844,4531.2,4531.1,1.4723]
[1755436883347,10.98482435,4539.3,4531.1,22.0273]
[1755436883348,0.8823,4531.7,4531.1,22.0273]
[1755436883541,1.15001942,4531.6,4531.5,0.5837]
[1755436883745,1.15001942,4531.6,4531.5,1.4723]
[1755436884142,1.65381942,4531.6,4531.5,1.4723]
[1755436885746,0.18831942,4531.6,4531.5,22.0473]
[1755436885948,0.3785,4532.8,4532.4,1.4723]
[1755436886141,0.4099,4533.0,4532.9,0.5837]
[1755436886345,0.4099,4533.0,4532.9,21.1337]
[1755436886746,0.6671,4533.0,4532.1,3.2078]
[1755436886944,0.4099,4532.3,4532.2,1.27107]
[1755436887144,0.4099,4532.3,4532.2,22.20547]
[1755436887545,0.4099,4532.3,4532.2,22.46237]
[1755436887952,0.4099,4532.3,4532.2,22.45695096]
[1755436888652,0.7884,4532.6,4532.5,1.4723]
[1755436889046,1.0456,4532.6,4532.5,1.4723]
[1755436889251,0.7884,4532.6,4532.5,1.91334]
[1755436889560,0.7884,4532.6,4532.5,22.45834]
[1755436889949,0.7884,4532.6,4532.5,22.45734]
[1755436890146,3.2078,4533.1,4532.7,0.44101]
[1755436890352,0.4099,4533.1,4533.0,1.4723]
[1755436890649,0.4099,4533.1,4533.0,22.0163]
[1755436891946,3.9962,4533.6,4533.5,0.83]
[1755436892154,4.2534,4533.6,4533.5,22.0133]
[1755436892545,4.2534,4533.6,4533.5,22.45425]
[1755436892746,3.9962,4533.6,4533.5,22.0133]
[1755436893146,1.4099,4534.0,4533.9,0.5837]
[1755436893352,1.4099,4534.0,4533.9,22.0113]
[1755436893552,1.7884,4534.0,4533.9,22.0113]
[1755436893750,1.0,4534.0,4533.9,22.0113]
[1755436895745,0.5,4534.0,4533.9,22.0333]
[1755436895945,0.7884,4534.7,4534.6,0.5837]
[1755436896145,0.7884,4534.7,4534.6,22.0073]
[1755436896354,1.0456,4534.7,4534.6,20.534]
[1755436896647,0.4099,4534.8,4534.7,1.0512]
[1755436896853,1.0456,4534.4,4534.3,4.1769]
[1755436897257,1.0456,4534.4,4534.3,24.9648]
[1755436897452,1.0456,4534.4,4534.3,25.2111]
[1755436897651,0.7884,4534.4,4534.3,25.2111]
[1755436897847,3.9962,4535.0,4534.6,0.68713]
[1755436898155,0.6671,4533.9,4533.4,1.0588]
[1755436898452,0.7884,4533.5,4533.4,1.4723]
[1755436898751,1.0456,4533.5,4533.3,3.2078]
[1755436898954,1.0456,4533.4,4533.3,3.2078]
[1755436899145,1.0456,4533.4,4533.3,24.1639]
[1755436899456,1.0456,4533.4,4533.3,24.5744]
[1755436900253,1.0456,4533.4,4533.3,3.2078]
[1755436900457,1.0456,4532.7,4532.6,4.6801]
[1755436900660,1.0456,4532.7,4532.6,25.2081]
[1755436901654,0.7884,4532.7,4532.6,25.2081]
[1755436902054,0.4099,4532.7,4532.6,25.2081]
[1755436902449,0.4099,4532.7,4532.6,25.2051]
[1755436902855,0.3785,4533.0,4532.6,24.3165]
[1755436903049,0.7884,4533.0,4532.9,1.4723]
[1755436903448,1.0456,4533.0,4532.9,1.4723]
[1755436906358,0.2386,4532.2,4532.1,3.2078]
[1755436906551,1.0456,4532.2,4532.1,23.9867]
[1755436906757,1.0456,4532.2,4532.1,24.5674]
[1755436906962,1.0456,4532.2,4532.1,24.8167]
[1755436907866,3.2078,4533.0,4532.1,25.1994]
[1755436908075,0.6234,4532.8,4532.2,0.5001]
[1755436908371,1.0401,4532.4,4532.1,3.2078]
[1755436908676,1.0401,4531.8,4531.7,0.8192]
[1755436908869,1.0401,4531.8,4531.7,21.3392]
[1755436909967,1.0401,4531.8,4531.7,21.9574]
[1755436910168,3.2078,4532.2,4532.1,0.5546]
[1755436910367,4.0094,4532.2,4532.1,21.9574]
[1755436911076,4.2479,4532.2,4532.1,21.0855]
[1755436911277,4.2479,4532.2,4532.1,20.519]
[1755436911472,4.2479,4532.2,4532.1,21.3382]
[1755436912170,3.2078,4532.2,4532.1,21.5737]
[1755436912374,3.2078,4532.2,4532.1,21.9564]
[1755436912876,4.0094,4532.2,4532.1,21.9564]
[1755436913078,4.2479,4532.2,4532.1,21.9564]
[1755436914471,4.2479,4532.2,4532.1,0.2474]
[1755436914776,4.2479,4532.2,4532.1,20.7644]
[1755436914976,1.0401,4532.2,4532.1,20.7644]
[1755436915273,1.0401,4532.2,4532.1,21.3362]
[1755436915473,1.0401,4532.2,4532.1,1.0547]
[1755436915667,1.0401,4532.2,4532.1,21.5717]
[1755436917374,1.0401,4532.2,4532.1,21.9544]
[1755436918474,1.0401,4532.2,4532.1,0.6449]
[1755436918675,0.6234,4532.1,4532.0,20.514]
[1755436918873,1.0401,4532.1,4532.0,20.514]
[1755436919076,1.0401,4532.1,4532.0,21.316]
[1755436919269,1.0401,4532.1,4532.0,21.9514]
[1755436920075,1.0401,4532.1,4532.0,21.9524]
[1755436922071,0.8016,4532.1,4532.0,21.9524]
[1755436924775,3.2078,4532.2,4532.1,0.8192]
[1755436925077,3.2078,4532.2,4532.1,1.4374]
[1755436925680,3.5927,4532.2,4532.1,1.4374]
[1755436925880,4.0094,4532.2,4532.1,1.4374]
[1755436927081,3.4609,4532.2,4532.1,1.4374]
[1755436927279,0.2385,4532.6,4532.1,1.4374]
[1755436927280,0.3849,4532.6,4532.1,0.5546]
[1755436927479,3.2078,4532.9,4532.6,0.5001]
[1755436927687,4.0094,4532.9,4532.8,1.4374]
[1755436928281,3.2078,4532.9,4532.8,1.4374]
[1755436928487,4.0094,4532.9,4532.8,1.4374]
[1755436928690,4.2479,4532.9,4532.8,1.4374]
[1755436928896,4.2479,4532.9,4532.3,0.5001]
[1755436929089,0.2385,4532.8,4532.5,1.0448]
[1755436929383,0.4167,4532.6,4532.5,1.4374]
[1755436929590,0.8016,4532.6,4532.5,21.9434]
[1755436931881,0.2385,4532.5,4532.2,0.4147]
[1755436932081,0.4167,4532.0,4531.9,3.7624]
[1755436932283,1.0401,4532.0,4531.4,0.44114]
[1755436932592,0.4167,4531.6,4531.5,21.0566]
[1755436932792,0.8016,4531.6,4531.5,21.0566]
[1755436933191,1.0401,4531.6,4531.5,21.9394]
[1755436933692,1.0401,4531.6,4531.5,1.4374]
[1755436933891,1.0401,4531.6,4531.5,21.9394]
[1755436934288,1.0401,4531.6,4531.5,1.4374]
[1755436934486,1.0401,4531.6,4531.5,21.9374]
[1755436936189,0.8016,4531.6,4531.5,21.9374]
[1755436937493,0.4167,4531.6,4531.5,21.9374]
[1755436938294,0.8017,4531.6,4531.5,21.9374]
[1755436938896,0.8017,4531.6,4531.5,1.4374]
[1755436939095,0.8017,4531.6,4531.5,21.9334]
[1755436939291,0.4167,4531.6,4531.5,21.9334]
[1755436939488,0.385,4531.9,4531.5,21.9334]
[1755436939688,0.5465,4531.8,4531.7,0.3301]
[1755436939994,0.8039,4531.8,4531.7,1.4551]
[1755436940886,1.0542,4532.3,4532.2,0.5795]
[1755436941087,0.8039,4532.3,4532.2,21.9511]
[1755436942597,3.2078,4533.0,4532.2,21.0755]
[1755436942896,0.8039,4532.5,4532.4,1.4551]
[1755436943094,1.0542,4532.5,4532.4,21.9491]
[1755436943601,0.8039,4532.5,4532.4,21.9491]
[1755436944292,3.877,4532.5,4532.1,0.4896]
[1755436944597,1.0542,4531.8,4531.7,1.0691]
[1755436944997,1.0542,4531.8,4531.7,21.5601]
[1755436945588,1.0542,4531.8,4531.7,20.8968]
[1755436945899,1.0542,4531.8,4531.7,21.3107]
[1755436946394,0.2503,4532.4,4531.8,0.4896]
[1755436946698,1.0542,4532.4,4532.3,0.8197]
[1755436946897,1.0542,4532.4,4532.2,20.49]
[1755436947598,1.0542,4532.3,4532.2,20.49]
[1755436948301,0.8039,4531.6,4531.5,1.89623]
[1755436948493,0.8039,4531.6,4531.5,22.38423]
[1755436949387,0.2503,4531.9,4531.5,21.9431]
[1755436949598,0.8039,4531.9,4531.8,1.4551]
[1755436949796,0.8039,4531.9,4531.8,21.9421]
[1755436950301,1.0542,4531.9,4531.8,21.9421]
[1755436953201,1.0542,4531.9,4531.8,1.4551]
[1755436953403,1.0542,4531.9,4531.8,21.9381]
[1755436953602,0.8039,4531.9,4531.8,21.9381]
[1755436953903,0.8039,4531.9,4531.8,1.4551]
[1755436954202,0.8039,4531.9,4531.8,21.9371]
[1755436955098,3.5928,4532.5,4531.8,21.4475]
[1755436955303,4.262,4532.5,4532.4,1.4551]
[1755436955504,4.85530278,4532.5,4532.4,1.4551]
[1755436955703,4.85530278,4532.5,4532.4,1.0691]
[1755436956402,4.85530278,4532.5,4532.4,0.8197]
[1755436956609,4.85530278,4532.5,4532.4,1.4551]
[1755436957306,1.01220278,4532.5,4532.4,1.4551]
[1755436957602,0.385,4532.8,4532.4,21.9341]
[1755436957804,4.262,4533.2,4533.1,1.4551]
[1755436958005,4.85554844,4533.2,4533.1,1.4551]
[1755436959108,4.60524844,4533.2,4533.1,1.4551]
[1755436959698,4.0117,4533.2,4533.1,1.4551]
[1755436961604,0.8039,4533.2,4533.1,1.4551]
[1755436961803,4.0117,4533.2,4533.1,1.4551]
[1755436963017,0.385,4534.2,4533.3,0.44095]
[1755436963203,1.0542,4534.1,4534.0,1.4551]
[1755436963706,3.2078,4534.3,4534.2,1.4551]
[1755436963903,3.6267,4534.3,4533.5,0.8756]
[1755436964111,1.0542,4534.0,4533.9,0.8197]
[1755436964306,0.4189,4533.7,4533.6,20.471]
[1755436964506,1.0542,4533.7,4533.6,20.7122]
[1755436964811,0.4189,4533.7,4533.3,20.7122]
[1755436965012,1.0542,4533.4,4533.3,20.7122]
[1755436965510,1.0542,4533.4,4533.3,21.9261]
[1755436966708,0.8039,4533.4,4533.3,21.9261]
[1755436967409,3.2078,4533.8,4533.3,21.9261]
[1755436967609,3.2078,4533.8,4533.7,1.4328]
[1755436967811,3.6168,4533.8,4533.7,1.4328]
[1755436968006,3.9752,4533.8,4533.7,1.4328]
[1755436968812,4.2231,4533.8,4533.7,1.4328]
[1755436969316,3.9752,4533.8,4533.7,1.4328]
[1755436969816,3.2078,4533.8,4533.7,21.8998]
[1755436971419,0.3584,4534.2,4533.7,21.8998]
[1755436971627,3.2078,4534.4,4534.0,0.5884]
[1755436971628,0.7674,4534.1,4534.0,0.5884]
[1755436971825,0.7674,4534.1,4534.0,1.4328]
[1755436972624,0.409,4534.1,4534.0,1.4328]
[1755436972826,0.7674,4534.1,4534.0,1.4328]
[1755436974021,3.9752,4534.4,4534.3,1.4328]
[1755436974327,4.2231,4534.4,4534.3,1.4328]
[1755436977530,0.409,4534.1,4534.0,21.0454]
[1755436977730,1.0153,4534.1,4534.0,21.8898]
[1755436979824,1.0153,4534.1,4534.0,21.8868]
[1755436980226,1.0153,4534.1,4532.4,1.10262]
[1755436980526,1.0153,4533.2,4533.1,1.0686]
[1755436980718,1.0153,4533.2,4532.7,3.2078]
[1755436980924,1.0153,4533.0,4532.9,0.2373]
[1755436981128,1.0153,4533.0,4532.9,0.5718]
[1755436981427,0.7674,4533.0,4532.9,1.1899]
[1755436981624,0.7674,4533.0,4532.9,1.4328]
[1755436982026,0.3584,4533.3,4532.9,0.5884]
[1755436982226,1.0153,4533.3,4533.2,1.4328]
[1755436983432,0.3584,4533.7,4533.2,0.5884]
[1755436983652,0.7674,4533.7,4533.6,1.4328]
[1755436984429,1.0153,4533.7,4533.6,1.4328]
[1755436985435,1.0153,4533.7,4533.6,0.2429]
[1755436985929,0.409,4533.7,4533.4,0.4802]
[1755436986233,1.0153,4533.5,4533.4,0.4802]
[1755436986635,1.0153,4533.5,4533.4,0.8147]
[1755436986838,1.0153,4533.5,4533.4,1.4328]
[1755436986839,0.7674,4533.5,4533.4,1.4328]
[1755436988133,1.0153,4533.5,4533.4,1.4328]
[1755436988335,3.2078,4533.8,4533.4,0.5884]
[1755436988531,3.5662,4533.8,4533.7,1.4328]
[1755436988732,3.9752,4533.8,4533.7,1.4328]
[1755436989434,4.2231,4533.8,4533.7,1.4328]
[1755436992135,3.2078,4534.3,4533.7,1.4328]
[1755436992434,1.36104797,4534.2,4534.1,1.4328]
[1755436992833,1.60894797,4534.2,4534.1,1.4328]
[1755436994443,1.60894797,4534.2,4534.1,0.4126]
[1755436994638,0.409,4534.0,4533.9,0.2429]
[1755436994839,1.0153,4533.8,4533.7,0.2429]
[1755436995034,4.2231,4533.8,4533.7,0.2429]
[1755436995236,4.21061578,4533.8,4533.4,0.4802]
[1755436995437,0.409,4533.5,4533.4,0.4802]
[1755436995734,3.2078,4533.8,4531.5,2.76471439]
[1755436995735,1.0153,4533.3,4533.2,0.2429]
[1755436996043,0.3584,4532.2,4531.8,0.4802]
[1755436996238,0.7674,4532.2,4532.1,1.4328]
[1755436996734,1.0153,4532.2,4532.1,1.4328]
[1755436999643,0.7674,4532.2,4532.1,1.4328]
[1755437000238,3.9983,4532.6,4532.5,0.3276]